[Event "*** Titled Tuesday Blitz"]
[Site "Chess.com"]
[Date "2021.04.27"]
[Round "1"]
[White "SchmakAttack"]
[Black "Mili_Brizzi"]
[Result "1-0"]
[WhiteElo "2622"]
[BlackElo "2291"]
[TimeControl "180+1"]
[EndTime "10:07:55 PDT"]
[Termination "SchmakAttack won on time"]

1. c4 {[%clk 0:03:00.4]} 1... c6 {[%clk 0:02:59.8]} 2. e3 {[%clk 0:02:57.6]}
2... d5 {[%clk 0:02:59.3]} 3. b3 {[%clk 0:02:58.2]} 3... Nf6 {[%clk 0:02:58.6]}
4. Bb2 {[%clk 0:02:58.1]} 4... Bf5 {[%clk 0:02:58.7]} 5. Nf3 {[%clk 0:02:57.5]}
5... Nbd7 {[%clk 0:02:58.2]} 6. Be2 {[%clk 0:02:56.4]} 6... e6 {[%clk
0:02:58.4]} 7. O-O {[%clk 0:02:51]} 7... Be7 {[%clk 0:02:58.1]} 8. d3 {[%clk
0:02:49]} 8... O-O {[%clk 0:02:56.9]} 9. Nh4 {[%clk 0:02:44.6]} 9... Bg6 {[%clk
0:02:56.1]} 10. Nd2 {[%clk 0:02:37.8]} 10... a5 {[%clk 0:02:48.2]} 11. a3 {[%clk
0:02:35.5]} 11... b5 {[%clk 0:02:45]} 12. Nxg6 {[%clk 0:02:29.3]} 12... hxg6
{[%clk 0:02:44.8]} 13. Nf3 {[%clk 0:02:11.8]} 13... Qb6 {[%clk 0:02:31.1]} 14.
Rb1 {[%clk 0:02:01.6]} 14... Rac8 {[%clk 0:02:08.8]} 15. Qd2 {[%clk 0:01:53.7]}
15... Rfd8 {[%clk 0:02:05.7]} 16. Rfc1 {[%clk 0:01:47.9]} 16... b4 {[%clk
0:01:15.7]} 17. a4 {[%clk 0:01:38.6]} 17... Nc5 {[%clk 0:01:05.7]} 18. Qc2
{[%clk 0:01:35.2]} 18... Qb7 {[%clk 0:00:56.9]} 19. Ne5 {[%clk 0:01:24.4]} 19...
Nfd7 {[%clk 0:00:40]} 20. Nxd7 {[%clk 0:00:50.4]} 20... Nxd7 {[%clk 0:00:40.9]}
21. d4 {[%clk 0:00:50.9]} 21... c5 {[%clk 0:00:37.1]} 22. cxd5 {[%clk
0:00:29.7]} 22... Qxd5 {[%clk 0:00:36.6]} 23. Ba6 {[%clk 0:00:17.7]} 23... Ra8
{[%clk 0:00:24.6]} 24. Bc4 {[%clk 0:00:17]} 24... Qh5 {[%clk 0:00:24]} 25. dxc5
{[%clk 0:00:15.8]} 25... Nxc5 {[%clk 0:00:23.5]} 26. Rd1 {[%clk 0:00:15.7]}
26... Rdc8 {[%clk 0:00:22.6]} 27. h3 {[%clk 0:00:13]} 27... Qg5 {[%clk
0:00:19.4]} 28. Rbc1 {[%clk 0:00:12.7]} 28... Bf6 {[%clk 0:00:16.6]} 29. Bd4
{[%clk 0:00:09.4]} 29... Nb7 {[%clk 0:00:14.1]} 30. Qe2 {[%clk 0:00:05.9]} 30...
Bxd4 {[%clk 0:00:13]} 31. Rxd4 {[%clk 0:00:06.1]} 31... Nc5 {[%clk 0:00:12.7]}
32. Rcd1 {[%clk 0:00:06]} 32... Qf6 {[%clk 0:00:12.6]} 33. Rd6 {[%clk
0:00:03.9]} 33... Qc3 {[%clk 0:00:10.3]} 34. Qf3 {[%clk 0:00:03.1]} 34... Nxb3
{[%clk 0:00:09.6]} 35. Rd7 {[%clk 0:00:03.6]} 35... Rf8 {[%clk 0:00:08]} 36.
Rxf7 {[%clk 0:00:03.8]} 36... Rxf7 {[%clk 0:00:07.1]} 37. Bxe6 {[%clk
0:00:04.4]} 37... Rf8 {[%clk 0:00:07]} 38. Bxf7+ {[%clk 0:00:04.7]} 38... Rxf7
{[%clk 0:00:06.6]} 39. Rd8+ {[%clk 0:00:05.2]} 39... Kh7 {[%clk 0:00:06.1]} 40.
Qxf7 {[%clk 0:00:05.4]} 40... Qc1+ {[%clk 0:00:04.8]} 41. Kh2 {[%clk 0:00:05.8]}
41... Nd2 {[%clk 0:00:03.2]} 42. Qg8+ {[%clk 0:00:05.7]} 42... Kh6 {[%clk
0:00:03.1]} 43. Qh8+ {[%clk 0:00:06.2]} 43... Kg5 {[%clk 0:00:03.3]} 44. Rd5+
{[%clk 0:00:06.8]} 44... Kf6 {[%clk 0:00:02.8]} 45. Qf8+ {[%clk 0:00:06.4]}
45... Ke6 {[%clk 0:00:02.9]} 46. Qg8+ {[%clk 0:00:06.9]} 46... Kf6 {[%clk
0:00:02.8]} 47. Qd8+ {[%clk 0:00:07.1]} 47... Ke6 {[%clk 0:00:01.6]} 48. Rd6+
{[%clk 0:00:06.5]} 48... Kf5 {[%clk 0:00:01.4]} 49. Qf8+ {[%clk 0:00:04.7]}
49... Kg5 {[%clk 0:00:01.2]} 50. Qf4+ {[%clk 0:00:04.3]} 50... Kh5 {[%clk
0:00:01.1]} 51. Rd5+ {[%clk 0:00:04.3]} 1-0

[Event "*** Titled Tuesday Blitz"]
[Site "Chess.com"]
[Date "2021.04.27"]
[Round "1"]
[White "Orest_Vovk"]
[Black "Leonid_Starozhilov"]
[Result "1-0"]
[WhiteElo "2371"]
[BlackElo "2670"]
[TimeControl "180+1"]
[EndTime "10:07:57 PDT"]
[Termination "Orest_Vovk won on time"]

1. h3 {[%clk 0:03:00.7]} 1... d5 {[%clk 0:02:59.8]} 2. e4 {[%clk 0:02:59.3]}
2... dxe4 {[%clk 0:02:59.2]} 3. Nc3 {[%clk 0:02:59.5]} 3... Nf6 {[%clk
0:02:58.6]} 4. Qe2 {[%clk 0:02:59.6]} 4... Nc6 {[%clk 0:02:57.8]} 5. Nxe4 {[%clk
0:02:58.3]} 5... e5 {[%clk 0:02:56.7]} 6. Nf3 {[%clk 0:02:54.1]} 6... Bd6 {[%clk
0:02:32.5]} 7. d3 {[%clk 0:02:47.6]} 7... Nd5 {[%clk 0:02:21.7]} 8. Nxd6+ {[%clk
0:02:35.1]} 8... cxd6 {[%clk 0:02:20.5]} 9. g3 {[%clk 0:02:29.7]} 9... O-O
{[%clk 0:02:17.2]} 10. Bg2 {[%clk 0:02:29.6]} 10... Nf6 {[%clk 0:02:06.8]} 11.
O-O {[%clk 0:02:28.4]} 11... h6 {[%clk 0:02:07.2]} 12. Bd2 {[%clk 0:02:18.2]}
12... Re8 {[%clk 0:02:06]} 13. Bc3 {[%clk 0:02:12.1]} 13... Be6 {[%clk
0:02:03.7]} 14. Nd2 {[%clk 0:02:02.3]} 14... Bd5 {[%clk 0:01:55.1]} 15. Ne4
{[%clk 0:01:58.9]} 15... Nxe4 {[%clk 0:01:41.8]} 16. dxe4 {[%clk 0:01:57.7]}
16... Be6 {[%clk 0:01:42.2]} 17. f4 {[%clk 0:01:46.5]} 17... f6 {[%clk
0:01:34.3]} 18. Rad1 {[%clk 0:01:38.9]} 18... Qc7 {[%clk 0:01:33.5]} 19. f5
{[%clk 0:01:31.2]} 19... Bf7 {[%clk 0:01:33.3]} 20. g4 {[%clk 0:01:11.9]} 20...
Qb6+ {[%clk 0:01:28.1]} 21. Qf2 {[%clk 0:01:03.3]} 21... Rad8 {[%clk 0:01:22.3]}
22. Qxb6 {[%clk 0:01:01.6]} 22... axb6 {[%clk 0:01:22.4]} 23. Rf2 {[%clk
0:00:52]} 23... Kf8 {[%clk 0:01:02.5]} 24. Rfd2 {[%clk 0:00:45.1]} 24... Ke7
{[%clk 0:01:02.4]} 25. Bf1 {[%clk 0:00:41.3]} 25... Rd7 {[%clk 0:00:57.7]} 26.
Bb5 {[%clk 0:00:38]} 26... Red8 {[%clk 0:00:45]} 27. a3 {[%clk 0:00:29.2]} 27...
d5 {[%clk 0:00:43.6]} 28. exd5 {[%clk 0:00:26.5]} 28... Rxd5 {[%clk 0:00:43.8]}
29. Rxd5 {[%clk 0:00:26.2]} 29... Rxd5 {[%clk 0:00:23]} 30. Rxd5 {[%clk
0:00:25.5]} 30... Bxd5 {[%clk 0:00:23.9]} 31. Kf2 {[%clk 0:00:15.8]} 31... Be4
{[%clk 0:00:17.4]} 32. Ba4 {[%clk 0:00:13.7]} 32... Bd5 {[%clk 0:00:14.2]} 33.
Bd2 {[%clk 0:00:09.9]} 33... Kf7 {[%clk 0:00:13.8]} 34. Be3 {[%clk 0:00:09]}
34... h5 {[%clk 0:00:08.3]} 35. Bxb6 {[%clk 0:00:07.8]} 35... hxg4 {[%clk
0:00:08.7]} 36. hxg4 {[%clk 0:00:08.6]} 36... g6 {[%clk 0:00:09.4]} 37. fxg6+
{[%clk 0:00:08.1]} 37... Kxg6 {[%clk 0:00:10.3]} 38. Be3 {[%clk 0:00:08.4]}
38... Be4 {[%clk 0:00:07.8]} 39. c3 {[%clk 0:00:08.4]} 39... Bd5 {[%clk
0:00:07.3]} 40. b4 {[%clk 0:00:08.5]} 40... Bc4 {[%clk 0:00:06]} 41. Bc2+ {[%clk
0:00:08.6]} 41... Kf7 {[%clk 0:00:05.5]} 42. a4 {[%clk 0:00:09]} 42... Ne7
{[%clk 0:00:05.7]} 43. g5 {[%clk 0:00:08.2]} 43... f5 {[%clk 0:00:05]} 44. Bc5
{[%clk 0:00:07.3]} 44... f4 {[%clk 0:00:03.4]} 45. Be4 {[%clk 0:00:05.7]} 45...
Nd5 {[%clk 0:00:02.8]} 46. Kf3 {[%clk 0:00:04.4]} 46... Nxc3 {[%clk 0:00:02.7]}
47. Bxb7 {[%clk 0:00:04.2]} 47... Be2+ {[%clk 0:00:01.2]} 48. Kf2 {[%clk
0:00:03.7]} 1-0

[Event "*** Titled Tuesday Blitz"]
[Site "Chess.com"]
[Date "2021.04.27"]
[Round "1"]
[White "Piotrek1979"]
[Black "BahadirOzen"]
[Result "0-1"]
[WhiteElo "2345"]
[BlackElo "2677"]
[TimeControl "180+1"]
[EndTime "10:07:57 PDT"]
[Termination "BahadirOzen won by resignation"]

1. e4 {[%clk 0:03:00.9]} 1... g6 {[%clk 0:02:59.4]} 2. Nf3 {[%clk 0:03:00.5]}
2... d6 {[%clk 0:02:59.6]} 3. d4 {[%clk 0:02:59.8]} 3... Nf6 {[%clk 0:02:59.7]}
4. Nc3 {[%clk 0:02:58.1]} 4... Bg7 {[%clk 0:03:00]} 5. Be2 {[%clk 0:02:57.9]}
5... O-O {[%clk 0:03:00]} 6. O-O {[%clk 0:02:57.5]} 6... e6 {[%clk 0:02:59.8]}
7. Re1 {[%clk 0:02:53.2]} 7... Nc6 {[%clk 0:02:59.5]} 8. d5 {[%clk 0:02:45.6]}
8... exd5 {[%clk 0:02:37.5]} 9. exd5 {[%clk 0:02:44.1]} 9... Ne7 {[%clk
0:02:37.5]} 10. h3 {[%clk 0:02:40.6]} 10... a6 {[%clk 0:02:29.5]} 11. a4 {[%clk
0:02:38.5]} 11... b6 {[%clk 0:02:29.4]} 12. Bf4 {[%clk 0:02:24.4]} 12... h6
{[%clk 0:02:28.8]} 13. Qd2 {[%clk 0:02:19.8]} 13... Kh7 {[%clk 0:02:28.8]} 14.
Nd4 {[%clk 0:01:53.3]} 14... Bb7 {[%clk 0:02:28.6]} 15. Bf3 {[%clk 0:01:52.5]}
15... Qd7 {[%clk 0:02:07.5]} 16. Nde2 {[%clk 0:01:28.5]} 16... Rfe8 {[%clk
0:01:54.6]} 17. Ng3 {[%clk 0:01:24.2]} 17... Neg8 {[%clk 0:01:46.5]} 18. h4
{[%clk 0:00:57.6]} 18... Rxe1+ {[%clk 0:01:33.5]} 19. Rxe1 {[%clk 0:00:58.5]}
19... Re8 {[%clk 0:01:33.6]} 20. Rxe8 {[%clk 0:00:55.2]} 20... Qxe8 {[%clk
0:01:32.8]} 21. h5 {[%clk 0:00:56.1]} 21... Ne7 {[%clk 0:01:29.1]} 22. Qd3
{[%clk 0:00:50.9]} 22... Kg8 {[%clk 0:01:12.2]} 23. hxg6 {[%clk 0:00:49.2]}
23... fxg6 {[%clk 0:01:13.1]} 24. Qe3 {[%clk 0:00:45.4]} 24... g5 {[%clk
0:01:12.3]} 25. Qe6+ {[%clk 0:00:41.2]} 25... Qf7 {[%clk 0:01:10.5]} 26. Bxd6
{[%clk 0:00:34.1]} 26... cxd6 {[%clk 0:01:06.2]} 27. Qxd6 {[%clk 0:00:35]} 27...
Nfxd5 {[%clk 0:00:58.3]} 28. Nxd5 {[%clk 0:00:17.1]} 28... Bxd5 {[%clk
0:00:56.5]} 29. Bxd5 {[%clk 0:00:13.5]} 29... Nxd5 {[%clk 0:00:57.4]} 30. Ne4
{[%clk 0:00:12.3]} 30... Nf6 {[%clk 0:00:45.8]} 31. Nxf6+ {[%clk 0:00:08.4]}
31... Qxf6 {[%clk 0:00:46.7]} 32. Qd5+ {[%clk 0:00:08]} 32... Kh8 {[%clk
0:00:41.1]} 33. Qa8+ {[%clk 0:00:07.6]} 33... Kh7 {[%clk 0:00:41.6]} 34. Qxa6
{[%clk 0:00:08.5]} 34... Qxb2 {[%clk 0:00:41.7]} 35. Qd3+ {[%clk 0:00:08.7]}
35... Kg8 {[%clk 0:00:40.3]} 36. Qd8+ {[%clk 0:00:09.6]} 36... Bf8 {[%clk
0:00:39]} 37. Qd5+ {[%clk 0:00:09.6]} 37... Kg7 {[%clk 0:00:39.5]} 38. c4 {[%clk
0:00:08.4]} 38... Qf6 {[%clk 0:00:38]} 39. Qd7+ {[%clk 0:00:07.8]} 39... Qe7
{[%clk 0:00:37.5]} 40. Qd4+ {[%clk 0:00:08.1]} 40... Kg8 {[%clk 0:00:37.5]} 41.
Qxb6 {[%clk 0:00:08]} 41... Qe1+ {[%clk 0:00:33.5]} 42. Kh2 {[%clk 0:00:08]}
42... Qe5+ {[%clk 0:00:33.8]} 43. g3 {[%clk 0:00:07.5]} 43... Bc5 {[%clk
0:00:31.6]} 44. Qg6+ {[%clk 0:00:06.8]} 44... Kf8 {[%clk 0:00:31.6]} 45. Qxh6+
{[%clk 0:00:06.6]} 45... Kf7 {[%clk 0:00:32]} 46. Qh7+ {[%clk 0:00:06.4]} 46...
Kf8 {[%clk 0:00:30.8]} 47. Qh6+ {[%clk 0:00:06]} 47... Ke8 {[%clk 0:00:28.4]}
48. Qg6+ {[%clk 0:00:05.6]} 48... Ke7 {[%clk 0:00:28.6]} 49. Qh7+ {[%clk
0:00:04.9]} 49... Kd8 {[%clk 0:00:29]} 50. Qg8+ {[%clk 0:00:04.5]} 50... Kc7
{[%clk 0:00:29]} 51. Kg2 {[%clk 0:00:04.5]} 51... Qe4+ {[%clk 0:00:28.3]} 52.
Kh3 {[%clk 0:00:04.5]} 52... g4+ {[%clk 0:00:25.4]} 53. Kh4 {[%clk 0:00:04.3]}
53... Be7+ {[%clk 0:00:22.2]} 54. Kh5 {[%clk 0:00:04.5]} 54... Qf5+ {[%clk
0:00:22.5]} 55. Kh6 {[%clk 0:00:05.1]} 55... Bf8+ {[%clk 0:00:23]} 56. Qxf8
{[%clk 0:00:03.7]} 56... Qxf8+ {[%clk 0:00:23.9]} 57. Kg5 {[%clk 0:00:04.5]}
57... Qf3 {[%clk 0:00:22.7]} 0-1

[Event "*** Titled Tuesday Blitz"]
[Site "Chess.com"]
[Date "2021.04.27"]
[Round "1"]
[White "Buffy7"]
[Black "I_am_a_Miracle"]
[Result "1-0"]
[WhiteElo "2712"]
[BlackElo "2378"]
[TimeControl "180+1"]
[EndTime "10:07:58 PDT"]
[Termination "Buffy7 won on time"]

1. d4 {[%clk 0:03:00.8]} 1... Nf6 {[%clk 0:02:59.4]} 2. c4 {[%clk 0:03:00.3]}
2... g6 {[%clk 0:02:59.4]} 3. Nc3 {[%clk 0:02:59]} 3... d5 {[%clk 0:02:59.6]} 4.
Nf3 {[%clk 0:02:56.6]} 4... Bg7 {[%clk 0:02:59.4]} 5. cxd5 {[%clk 0:02:56.8]}
5... Nxd5 {[%clk 0:02:59.2]} 6. Na4 {[%clk 0:02:56.4]} 6... Nf6 {[%clk
0:02:54.6]} 7. g3 {[%clk 0:02:40.9]} 7... O-O {[%clk 0:02:54]} 8. Bg2 {[%clk
0:02:41.1]} 8... Nc6 {[%clk 0:02:52.6]} 9. O-O {[%clk 0:02:31.6]} 9... Bg4
{[%clk 0:02:51.3]} 10. Nc5 {[%clk 0:02:24.3]} 10... b6 {[%clk 0:02:36]} 11. Nb3
{[%clk 0:02:17]} 11... Rc8 {[%clk 0:02:32.2]} 12. h3 {[%clk 0:02:06.1]} 12...
Bxf3 {[%clk 0:02:11.8]} 13. Bxf3 {[%clk 0:02:07]} 13... Qd7 {[%clk 0:02:11.8]}
14. e3 {[%clk 0:01:45.6]} 14... Rfd8 {[%clk 0:02:06.6]} 15. Qc2 {[%clk
0:01:35.4]} 15... Nb4 {[%clk 0:02:03.4]} 16. Qc4 {[%clk 0:01:33]} 16... c5
{[%clk 0:01:47.5]} 17. dxc5 {[%clk 0:01:24.9]} 17... Nc6 {[%clk 0:01:33.7]} 18.
Bg2 {[%clk 0:01:09.9]} 18... bxc5 {[%clk 0:01:24]} 19. Qxc5 {[%clk 0:01:00.6]}
19... Qe6 {[%clk 0:00:44.6]} 20. Qb5 {[%clk 0:00:54.1]} 20... Ne5 {[%clk
0:00:38.6]} 21. Nd4 {[%clk 0:00:53.3]} 21... Qd6 {[%clk 0:00:35.2]} 22. b3
{[%clk 0:00:38.9]} 22... a6 {[%clk 0:00:23.8]} 23. Qe2 {[%clk 0:00:34]} 23...
Ned7 {[%clk 0:00:17.4]} 24. Rd1 {[%clk 0:00:28.5]} 24... Qb6 {[%clk 0:00:16.1]}
25. Ba3 {[%clk 0:00:26.7]} 25... e5 {[%clk 0:00:15.7]} 26. Nf3 {[%clk
0:00:18.7]} 26... e4 {[%clk 0:00:15]} 27. Nd4 {[%clk 0:00:17.3]} 27... Ne5
{[%clk 0:00:15.2]} 28. Rac1 {[%clk 0:00:16.6]} 28... Nd3 {[%clk 0:00:14.4]} 29.
Rxc8 {[%clk 0:00:16.2]} 29... Rxc8 {[%clk 0:00:14.7]} 30. Bxe4 {[%clk
0:00:11.4]} 30... Nxf2 {[%clk 0:00:14.8]} 31. Qxf2 {[%clk 0:00:09.1]} 31... Nxe4
{[%clk 0:00:15.2]} 32. Qf3 {[%clk 0:00:07.8]} 32... Nc3 {[%clk 0:00:15.4]} 33.
Rf1 {[%clk 0:00:07.7]} 33... f5 {[%clk 0:00:14]} 34. Bb2 {[%clk 0:00:07.6]}
34... Nxa2 {[%clk 0:00:13.9]} 35. g4 {[%clk 0:00:07.3]} 35... Rf8 {[%clk
0:00:09]} 36. gxf5 {[%clk 0:00:07.2]} 36... Nb4 {[%clk 0:00:08.7]} 37. Kh1
{[%clk 0:00:05.9]} 37... Nd3 {[%clk 0:00:08.4]} 38. Ba3 {[%clk 0:00:06.3]} 38...
Ne5 {[%clk 0:00:08.2]} 39. Qd5+ {[%clk 0:00:05.7]} 39... Kh8 {[%clk 0:00:07.9]}
40. Ne6 {[%clk 0:00:06.3]} 40... Qxe3 {[%clk 0:00:04.2]} 41. Qg2 {[%clk
0:00:03.7]} 41... Qh6 {[%clk 0:00:03.3]} 42. Nxg7 {[%clk 0:00:03.9]} 42... Kxg7
{[%clk 0:00:02.9]} 43. Bb2 {[%clk 0:00:04.8]} 43... Re8 {[%clk 0:00:02.5]} 44.
Re1 {[%clk 0:00:05]} 44... Qf4 {[%clk 0:00:02]} 45. Qb7+ {[%clk 0:00:05.1]}
45... Kh6 {[%clk 0:00:01.9]} 46. Qg2 {[%clk 0:00:06]} 46... Nf3 {[%clk
0:00:01.7]} 47. Rf1 {[%clk 0:00:05.1]} 1-0

[Event "*** Titled Tuesday Blitz"]
[Site "Chess.com"]
[Date "2021.04.27"]
[Round "1"]
[White "kakarot_001"]
[Black "lamomiablanca"]
[Result "1-0"]
[WhiteElo "2731"]
[BlackElo "2393"]
[TimeControl "180+1"]
[EndTime "10:08:00 PDT"]
[Termination "kakarot_001 won on time"]

1. e4 {[%clk 0:02:59.7]} 1... c5 {[%clk 0:02:59]} 2. Nf3 {[%clk 0:02:58.9]} 2...
Nc6 {[%clk 0:02:59.1]} 3. Bb5 {[%clk 0:02:58.8]} 3... g6 {[%clk 0:02:58.9]} 4.
Bxc6 {[%clk 0:02:58.5]} 4... dxc6 {[%clk 0:02:57.4]} 5. d3 {[%clk 0:02:59.4]}
5... Bg7 {[%clk 0:02:56.8]} 6. h3 {[%clk 0:02:58.9]} 6... Nf6 {[%clk 0:02:55.5]}
7. O-O {[%clk 0:02:58.9]} 7... O-O {[%clk 0:02:55.5]} 8. Nbd2 {[%clk 0:02:57.1]}
8... Nd7 {[%clk 0:02:40.3]} 9. a4 {[%clk 0:02:55.9]} 9... a5 {[%clk 0:02:35.6]}
10. Nc4 {[%clk 0:02:55.4]} 10... Qc7 {[%clk 0:02:33.8]} 11. Qe1 {[%clk
0:02:49.5]} 11... e5 {[%clk 0:02:32.6]} 12. b3 {[%clk 0:02:48.9]} 12... Re8
{[%clk 0:02:29.3]} 13. Bb2 {[%clk 0:02:48]} 13... b6 {[%clk 0:02:28.7]} 14. Nh2
{[%clk 0:02:47.2]} 14... Nf8 {[%clk 0:02:23.5]} 15. f4 {[%clk 0:02:33.1]} 15...
exf4 {[%clk 0:02:16.3]} 16. Bxg7 {[%clk 0:02:32.1]} 16... Kxg7 {[%clk
0:02:16.4]} 17. Qc3+ {[%clk 0:02:32.6]} 17... f6 {[%clk 0:01:52.8]} 18. e5
{[%clk 0:01:59.7]} 18... fxe5 {[%clk 0:01:07.1]} 19. Rae1 {[%clk 0:02:00]} 19...
Bf5 {[%clk 0:00:37.4]} 20. Nxe5 {[%clk 0:01:53.9]} 20... Ne6 {[%clk 0:00:21.6]}
21. Nxc6+ {[%clk 0:01:35.2]} 21... Kg8 {[%clk 0:00:20.3]} 22. Ne5 {[%clk
0:01:33]} 22... Nd4 {[%clk 0:00:19.8]} 23. Nhf3 {[%clk 0:01:30]} 23... Rad8
{[%clk 0:00:14.3]} 24. Nxd4 {[%clk 0:01:26.8]} 24... Rxd4 {[%clk 0:00:13.3]} 25.
Nf3 {[%clk 0:01:26.4]} 25... Rdd8 {[%clk 0:00:12]} 26. Qc4+ {[%clk 0:01:26]}
26... Kg7 {[%clk 0:00:11]} 27. Qb5 {[%clk 0:01:06.5]} 27... Bd7 {[%clk
0:00:06.8]} 28. Qc4 {[%clk 0:01:05.2]} 28... Bf5 {[%clk 0:00:06.1]} 29. Ng5
{[%clk 0:01:03.7]} 29... Rxe1 {[%clk 0:00:05.3]} 30. Rxe1 {[%clk 0:01:04.6]}
30... Rd4 {[%clk 0:00:04]} 31. Qc3 {[%clk 0:01:00.9]} 31... Kh6 {[%clk
0:00:03.5]} 32. Nf3 {[%clk 0:00:55.2]} 32... Rd7 {[%clk 0:00:04]} 33. Qf6 {[%clk
0:00:51.9]} 33... Qd8 {[%clk 0:00:02.9]} 34. Qe5 {[%clk 0:00:48]} 34... Rc7
{[%clk 0:00:01.4]} 35. Qxf4+ {[%clk 0:00:47.9]} 35... Kg7 {[%clk 0:00:01.9]} 36.
Ng5 {[%clk 0:00:47.6]} 36... Re7 {[%clk 0:00:01.3]} 37. Rf1 {[%clk 0:00:44.5]}
37... h6 {[%clk 0:00:01.7]} 38. Nf3 {[%clk 0:00:43.9]} 38... Re2 {[%clk
0:00:01.9]} 39. g4 {[%clk 0:00:41.5]} 39... Be6 {[%clk 0:00:01.7]} 40. g5 {[%clk
0:00:34.3]} 40... hxg5 {[%clk 0:00:01.5]} 41. Nxg5 {[%clk 0:00:35.2]} 41... Qd4+
{[%clk 0:00:02.1]} 42. Qxd4+ {[%clk 0:00:32.7]} 42... cxd4 {[%clk 0:00:03]} 43.
Rf2 {[%clk 0:00:33]} 43... Re1+ {[%clk 0:00:03]} 44. Kh2 {[%clk 0:00:27.7]}
44... Bd5 {[%clk 0:00:03.6]} 45. Kg3 {[%clk 0:00:26.7]} 45... Rg1+ {[%clk
0:00:03.8]} 46. Kf4 {[%clk 0:00:26.5]} 46... Rc1 {[%clk 0:00:04.5]} 47. Ke5
{[%clk 0:00:25.9]} 47... Bb7 {[%clk 0:00:03.9]} 48. Rf7+ {[%clk 0:00:25.1]}
48... Kh6 {[%clk 0:00:03.7]} 49. Ne6 {[%clk 0:00:24]} 49... Bg2 {[%clk
0:00:02.9]} 50. Nf4 {[%clk 0:00:21.5]} 50... Rg1 {[%clk 0:00:02.4]} 51. Kxd4
{[%clk 0:00:20.4]} 51... Rf1 {[%clk 0:00:02]} 52. Ke5 {[%clk 0:00:19.7]} 52...
g5 {[%clk 0:00:02.2]} 53. Rf6+ {[%clk 0:00:18.7]} 53... Kg7 {[%clk 0:00:02.4]}
54. Nh5+ {[%clk 0:00:18.8]} 1-0

[Event "*** Titled Tuesday Blitz"]
[Site "Chess.com"]
[Date "2021.04.27"]
[Round "1"]
[White "frederiksvane"]
[Black "Novoselski"]
[Result "1-0"]
[WhiteElo "2733"]
[BlackElo "2399"]
[TimeControl "180+1"]
[EndTime "10:08:05 PDT"]
[Termination "frederiksvane won by resignation"]

1. e4 {[%clk 0:03:00.9]} 1... d6 {[%clk 0:02:59.9]} 2. d4 {[%clk 0:03:00.6]}
2... c6 {[%clk 0:02:59.8]} 3. Nf3 {[%clk 0:03:00.5]} 3... Nd7 {[%clk 0:03:00.7]}
4. Bd3 {[%clk 0:03:00.7]} 4... e5 {[%clk 0:02:59.6]} 5. c3 {[%clk 0:02:58.7]}
5... Ngf6 {[%clk 0:02:58.6]} 6. O-O {[%clk 0:02:59.1]} 6... Be7 {[%clk 0:02:59]}
7. Nbd2 {[%clk 0:02:59]} 7... O-O {[%clk 0:02:59.5]} 8. Re1 {[%clk 0:02:59]}
8... Re8 {[%clk 0:02:58.9]} 9. Nf1 {[%clk 0:02:58.3]} 9... Bf8 {[%clk
0:02:58.6]} 10. Ng3 {[%clk 0:02:57.9]} 10... g6 {[%clk 0:02:57]} 11. a4 {[%clk
0:02:46.6]} 11... a5 {[%clk 0:02:55.2]} 12. Qb3 {[%clk 0:02:27.1]} 12... Bg7
{[%clk 0:02:52.6]} 13. Be3 {[%clk 0:02:24.7]} 13... Qe7 {[%clk 0:02:47.9]} 14.
h3 {[%clk 0:02:17.6]} 14... Nf8 {[%clk 0:02:44.1]} 15. Bc4 {[%clk 0:02:02]}
15... Be6 {[%clk 0:02:16.8]} 16. dxe5 {[%clk 0:02:01.5]} 16... Bxc4 {[%clk
0:02:15]} 17. Qxc4 {[%clk 0:01:54.7]} 17... dxe5 {[%clk 0:02:14.2]} 18. Red1
{[%clk 0:01:50.5]} 18... Qc7 {[%clk 0:02:04.3]} 19. Qb3 {[%clk 0:01:45.4]} 19...
N6d7 {[%clk 0:01:54.2]} 20. Rd2 {[%clk 0:01:29.2]} 20... Ne6 {[%clk 0:01:52.9]}
21. Rad1 {[%clk 0:01:26]} 21... Ndc5 {[%clk 0:01:51.8]} 22. Qc4 {[%clk
0:01:24.4]} 22... Bf8 {[%clk 0:01:45.1]} 23. h4 {[%clk 0:01:20.2]} 23... Rab8
{[%clk 0:01:37.5]} 24. Qa2 {[%clk 0:01:04.2]} 24... b5 {[%clk 0:01:33.4]} 25.
axb5 {[%clk 0:01:02.9]} 25... cxb5 {[%clk 0:01:32.5]} 26. Rd5 {[%clk 0:01:01.7]}
26... Nf4 {[%clk 0:01:09.4]} 27. Bxf4 {[%clk 0:00:54.4]} 27... exf4 {[%clk
0:01:08.5]} 28. Nf1 {[%clk 0:00:53.4]} 28... Rxe4 {[%clk 0:01:01.5]} 29. Ng5
{[%clk 0:00:41.5]} 29... Ra4 {[%clk 0:01:00]} 30. Qb1 {[%clk 0:00:39.1]} 30...
h6 {[%clk 0:00:57]} 31. Nf3 {[%clk 0:00:36.7]} 31... Re8 {[%clk 0:00:47.1]} 32.
N1h2 {[%clk 0:00:31.7]} 32... Rae4 {[%clk 0:00:36.8]} 33. Ng4 {[%clk 0:00:29.1]}
33... Bg7 {[%clk 0:00:36.1]} 34. h5 {[%clk 0:00:25.5]} 34... g5 {[%clk
0:00:31.8]} 35. Nxg5 {[%clk 0:00:13.4]} 35... hxg5 {[%clk 0:00:28.7]} 36. Rxg5
{[%clk 0:00:13.8]} 36... Kh8 {[%clk 0:00:27.3]} 37. h6 {[%clk 0:00:13.1]} 37...
Bf8 {[%clk 0:00:22.7]} 38. Nf6 {[%clk 0:00:10.6]} 38... Bxh6 {[%clk 0:00:21.5]}
39. Rh5 {[%clk 0:00:09.2]} 39... Kg7 {[%clk 0:00:18.5]} 40. Nxe8+ {[%clk
0:00:07.2]} 40... Rxe8 {[%clk 0:00:19.4]} 41. Qf5 {[%clk 0:00:07.5]} 41... Ne6
{[%clk 0:00:16.1]} 42. Qg4+ {[%clk 0:00:07.7]} 42... Kh7 {[%clk 0:00:12.6]} 43.
Qh4 {[%clk 0:00:06.3]} 43... Kg7 {[%clk 0:00:10.1]} 44. Rxh6 {[%clk 0:00:05.9]}
44... Rg8 {[%clk 0:00:10.1]} 45. Qf6+ {[%clk 0:00:06]} 45... Kf8 {[%clk
0:00:10]} 46. Rh8 {[%clk 0:00:05.8]} 46... Qc8 {[%clk 0:00:08]} 47. Rxg8+ {[%clk
0:00:05.8]} 47... Kxg8 {[%clk 0:00:08.9]} 48. Qe5 {[%clk 0:00:04.7]} 48... Qa8
{[%clk 0:00:06.7]} 49. Rd5 {[%clk 0:00:04.9]} 49... f3 {[%clk 0:00:05.6]} 50.
Rxb5 {[%clk 0:00:05.2]} 50... fxg2 {[%clk 0:00:04.2]} 51. Rb8+ {[%clk
0:00:05.8]} 51... Qxb8 {[%clk 0:00:02.9]} 52. Qxb8+ {[%clk 0:00:06.7]} 52... Kg7
{[%clk 0:00:03.4]} 53. Qe5+ {[%clk 0:00:07.2]} 53... Kg6 {[%clk 0:00:04.3]} 54.
Qxa5 {[%clk 0:00:08.1]} 1-0